[Event "Titled Tuesday Blitz July 11 Early 2023"]
[White "Shubenkova, Veronika"]
[Black "Tristan, Leonardo"]
[WhiteFideId "44124040"]
[BlackFideId "113816"]
[WhiteElo "2548"]
[BlackElo "2775"]
[Result "1/2-1/2"]
[Round "2"]
[TimeControl "180+2"]
[Date "2023.07.11"]
[WhiteClock "0:00:52"]
[BlackClock "0:00:12"]
[Board "47"]

1. e4 {[%clk 0:02:57]}  d5 {[%clk 0:02:59]} 2. exd5 {[%clk 0:02:57]}  Qxd5 {[%clk 0:03:00]} 3. Nc3 {[%clk 0:02:58]}  Qa5 {[%clk 0:03:00]} 4. Nf3 {[%clk 0:02:59]}  Nf6 {[%clk 0:03:00]} 5. Be2 {[%clk 0:03:00]}  Bf5 {[%clk 0:02:58]} 6. O-O {[%clk 0:03:01]}  e6 {[%clk 0:02:58]} 7. d3 {[%clk 0:03:01]}  c6 {[%clk 0:02:57]} 8. Bd2 {[%clk 0:03:01]}  Qc7 {[%clk 0:02:57]} 9. Nd4 {[%clk 0:02:59]}  Bg6 {[%clk 0:02:57]} 10. a3 {[%clk 0:02:52]}  Nbd7 {[%clk 0:02:56]} 11. b4 {[%clk 0:02:52]}  Bd6 {[%clk 0:02:55]} 12. h3 {[%clk 0:02:50]}  O-O {[%clk 0:02:55]} 13. Qb1 {[%clk 0:02:46]}  Rfe8 {[%clk 0:02:51]} 14. Qb3 {[%clk 0:02:45]}  Rad8 {[%clk 0:02:40]} 15. Rae1 {[%clk 0:02:44]}  e5 {[%clk 0:02:34]} 16. Nf3 {[%clk 0:02:43]}  e4 {[%clk 0:02:35]} 17. dxe4 {[%clk 0:02:43]}  Nxe4 {[%clk 0:02:35]} 18. Nxe4 {[%clk 0:02:43]}  Bxe4 {[%clk 0:02:36]} 19. Bc4 {[%clk 0:02:43]}  Nf6 {[%clk 0:02:34]} 20. Ng5 {[%clk 0:02:42]}  Bd5 {[%clk 0:02:16]} 21. Bc3 {[%clk 0:02:28]}  Bxc4 {[%clk 0:02:02]} 22. Qxc4 {[%clk 0:02:28]}  Nd5 {[%clk 0:02:03]} 23. Bb2 {[%clk 0:02:27]}  Be5 {[%clk 0:01:56]} 24. Rxe5 {[%clk 0:02:17]}  Rxe5 {[%clk 0:01:57]} 25. Qh4 {[%clk 0:02:03]}  Rxg5 {[%clk 0:01:18]} 26. Qxg5 {[%clk 0:02:01]}  f6 {[%clk 0:01:18]} 27. Qg4 {[%clk 0:01:58]}  Qd7 {[%clk 0:01:13]} 28. Qg3 {[%clk 0:01:56]}  Qd6 {[%clk 0:01:12]} 29. Qb3 {[%clk 0:01:55]}  Qe6 {[%clk 0:00:38]} 30. Rd1 {[%clk 0:01:45]}  Re8 {[%clk 0:00:31]} 31. c4 {[%clk 0:01:38]}  Nb6 {[%clk 0:00:31]} 32. Rc1 {[%clk 0:01:32]}  Qf7 {[%clk 0:00:28]} 33. Qd3 {[%clk 0:01:31]}  Qd7 {[%clk 0:00:26]} 34. Qf3 {[%clk 0:01:25]}  Qd2 {[%clk 0:00:24]} 35. Qb3 {[%clk 0:01:17]}  Kh8 {[%clk 0:00:24]} 36. Rd1 {[%clk 0:01:14]}  Qe2 {[%clk 0:00:24]} 37. Rc1 {[%clk 0:01:00]}  Nd7 {[%clk 0:00:17]} 38. c5 {[%clk 0:00:56]}  Ne5 {[%clk 0:00:16]} 39. Bxe5 {[%clk 0:00:55]}  Qxe5 {[%clk 0:00:15]} 40. Qf7 {[%clk 0:00:55]}  Qe7 {[%clk 0:00:15]} 41. Qh5 {[%clk 0:00:54]}  Qe5 {[%clk 0:00:14]} 42. Qf7 {[%clk 0:00:53]}  Qe7 {[%clk 0:00:14]} 43. Qc4 {[%clk 0:00:53]}  Qe4 {[%clk 0:00:13]} 44. Qf7 {[%clk 0:00:52]}  Qe7 {[%clk 0:00:12]} 1/2-1/2


[Site "https://www.chess.com"]

[Event "Titled Tuesday Blitz July 11 Early 2023"]
[White "Maximov, Dmitry"]
[Black "Demin, Vladimir"]
[WhiteFideId "14105659"]
[BlackFideId "4167457"]
[WhiteElo "2774"]
[BlackElo "2546"]
[Result "1-0"]
[Round "2"]
[TimeControl "180+2"]
[Date "2023.07.11"]
[WhiteClock "0:00:29"]
[BlackClock "0:00:03"]
[Board "48"]

1. e4 {[%clk 0:03:00]}  e5 {[%clk 0:02:27]} 2. Nf3 {[%clk 0:03:01]}  Nc6 {[%clk 0:02:27]} 3. Bb5 {[%clk 0:03:00]}  a6 {[%clk 0:02:25]} 4. Ba4 {[%clk 0:03:01]}  Bc5 {[%clk 0:02:25]} 5. O-O {[%clk 0:03:00]}  Nge7 {[%clk 0:02:21]} 6. c3 {[%clk 0:02:52]}  Ba7 {[%clk 0:02:18]} 7. d4 {[%clk 0:02:52]}  Ng6 {[%clk 0:02:16]} 8. d5 {[%clk 0:02:47]}  Nce7 {[%clk 0:02:02]} 9. h4 {[%clk 0:02:46]}  b5 {[%clk 0:01:57]} 10. Bc2 {[%clk 0:02:46]}  d6 {[%clk 0:01:57]} 11. h5 {[%clk 0:02:46]}  Bg4 {[%clk 0:01:48]} 12. hxg6 {[%clk 0:02:41]}  hxg6 {[%clk 0:01:48]} 13. Qd3 {[%clk 0:02:38]}  Nf5 {[%clk 0:01:20]} 14. exf5 {[%clk 0:02:21]}  gxf5 {[%clk 0:01:13]} 15. Nbd2 {[%clk 0:02:13]}  Kf8 {[%clk 0:01:11]} 16. Re1 {[%clk 0:02:02]}  Qf6 {[%clk 0:01:04]} 17. a4 {[%clk 0:01:17]}  Qh6 {[%clk 0:00:53]} 18. Kf1 {[%clk 0:01:17]}  Qh1+ {[%clk 0:00:46]} 19. Ng1 {[%clk 0:01:08]}  f4 {[%clk 0:00:32]} 20. Nf3 {[%clk 0:00:46]}  f5 {[%clk 0:00:20]} 21. Bxf4 {[%clk 0:00:45]}  e4 {[%clk 0:00:12]} 22. Rxe4 {[%clk 0:00:40]}  fxe4 {[%clk 0:00:13]} 23. Qxe4 {[%clk 0:00:40]}  Re8 {[%clk 0:00:13]} 24. Bxd6+ {[%clk 0:00:36]}  cxd6 {[%clk 0:00:11]} 25. Qxg4 {[%clk 0:00:36]}  Qh6 {[%clk 0:00:11]} 26. axb5 {[%clk 0:00:32]}  Bc5 {[%clk 0:00:06]} 27. bxa6 {[%clk 0:00:32]}  Qf6 {[%clk 0:00:03]} 28. a7 {[%clk 0:00:29]} 1-0


[Site "https://www.chess.com"]

[Event "Titled Tuesday Blitz July 11 Early 2023"]
[White "Berezin, Viktor"]
[Black "Remizov, Yaroslav"]
[WhiteFideId "14107872"]
[BlackFideId "34134015"]
[WhiteElo "2537"]
[BlackElo "2766"]
[Result "0-1"]
[Round "2"]
[TimeControl "180+2"]
[Date "2023.07.11"]
[WhiteClock "0:00:49"]
[BlackClock "0:01:14"]
[Board "51"]

1. d4 {[%clk 0:02:51]}  Nf6 {[%clk 0:03:00]} 2. Nf3 {[%clk 0:02:50]}  e6 {[%clk 0:02:59]} 3. c4 {[%clk 0:02:49]}  d5 {[%clk 0:02:59]} 4. g3 {[%clk 0:02:49]}  Bb4+ {[%clk 0:02:59]} 5. Nbd2 {[%clk 0:02:49]}  dxc4 {[%clk 0:02:57]} 6. Qc2 {[%clk 0:02:45]}  b5 {[%clk 0:02:48]} 7. Bg2 {[%clk 0:02:42]}  Bb7 {[%clk 0:02:48]} 8. O-O {[%clk 0:02:42]}  O-O {[%clk 0:02:40]} 9. a3 {[%clk 0:02:26]}  Be7 {[%clk 0:02:39]} 10. e4 {[%clk 0:02:26]}  Nbd7 {[%clk 0:02:34]} 11. e5 {[%clk 0:02:20]}  Nd5 {[%clk 0:02:33]} 12. Ne4 {[%clk 0:02:19]}  c5 {[%clk 0:02:27]} 13. Neg5 {[%clk 0:02:09]}  g6 {[%clk 0:02:24]} 14. h4 {[%clk 0:02:07]}  cxd4 {[%clk 0:02:17]} 15. Nxd4 {[%clk 0:02:03]}  Nxe5 {[%clk 0:02:16]} 16. Nxb5 {[%clk 0:01:38]}  Qb6 {[%clk 0:02:13]} 17. Nc3 {[%clk 0:01:26]}  Nxc3 {[%clk 0:02:12]} 18. Qxc3 {[%clk 0:01:27]}  Bxg2 {[%clk 0:02:10]} 19. Kxg2 {[%clk 0:01:28]}  Qc6+ {[%clk 0:02:08]} 20. f3 {[%clk 0:01:27]}  Bf6 {[%clk 0:02:02]} 21. Ne4 {[%clk 0:01:25]}  Bg7 {[%clk 0:02:01]} 22. Bh6 {[%clk 0:01:25]}  Bxh6 {[%clk 0:01:57]} 23. Qxe5 {[%clk 0:01:19]}  Bg7 {[%clk 0:01:57]} 24. Nf6+ {[%clk 0:01:13]}  Kh8 {[%clk 0:01:45]} 25. Rac1 {[%clk 0:01:09]}  Rad8 {[%clk 0:01:39]} 26. Qf4 {[%clk 0:01:03]}  e5 {[%clk 0:01:24]} 27. Rxc4 {[%clk 0:00:58]}  Qxf6 {[%clk 0:01:18]} 28. Qxf6 {[%clk 0:00:54]}  Rd2+ {[%clk 0:01:17]} 29. Rf2 {[%clk 0:00:55]}  Rxf2+ {[%clk 0:01:17]} 30. Kxf2 {[%clk 0:00:56]}  Bxf6 {[%clk 0:01:17]} 31. Rc7 {[%clk 0:00:55]}  e4 {[%clk 0:01:15]} 32. fxe4 {[%clk 0:00:52]}  Bxb2 {[%clk 0:01:14]} 33. Ke3 {[%clk 0:00:49]}  Bxa3 {[%clk 0:01:14]} 0-1


[Site "https://www.chess.com"]

[Event "Titled Tuesday Blitz July 11 Early 2023"]
[White "Gorovets, Andrey"]
[Black "Rangel, Daniel"]
[WhiteFideId "13504037"]
[BlackFideId "2124475"]
[WhiteElo "2762"]
[BlackElo "2534"]
[Result "1-0"]
[Round "2"]
[TimeControl "180+2"]
[Date "2023.07.11"]
[WhiteClock "0:00:18"]
[BlackClock "0:00:05"]
[Board "52"]

1. d4 {[%clk 0:03:00]}  Nf6 {[%clk 0:02:59]} 2. c4 {[%clk 0:03:00]}  e6 {[%clk 0:02:59]} 3. Nf3 {[%clk 0:03:01]}  d5 {[%clk 0:02:59]} 4. g3 {[%clk 0:03:01]}  Be7 {[%clk 0:03:00]} 5. Nc3 {[%clk 0:03:01]}  O-O {[%clk 0:03:00]} 6. Bg2 {[%clk 0:03:01]}  a5 {[%clk 0:03:00]} 7. O-O {[%clk 0:02:55]}  c6 {[%clk 0:03:00]} 8. Nd2 {[%clk 0:02:48]}  b6 {[%clk 0:02:17]} 9. e4 {[%clk 0:02:47]}  Ba6 {[%clk 0:02:17]} 10. b3 {[%clk 0:02:44]}  b5 {[%clk 0:02:16]} 11. e5 {[%clk 0:02:33]}  Nfd7 {[%clk 0:02:13]} 12. c5 {[%clk 0:02:33]}  b4 {[%clk 0:02:11]} 13. Ne2 {[%clk 0:02:33]}  f6 {[%clk 0:02:06]} 14. f4 {[%clk 0:02:33]}  fxe5 {[%clk 0:02:03]} 15. fxe5 {[%clk 0:02:34]}  Bg5 {[%clk 0:02:03]} 16. Nf3 {[%clk 0:02:31]}  Bxc1 {[%clk 0:02:02]} 17. Rxc1 {[%clk 0:02:32]}  Bb5 {[%clk 0:01:43]} 18. Qc2 {[%clk 0:02:06]}  Na6 {[%clk 0:01:40]} 19. h4 {[%clk 0:02:05]}  h6 {[%clk 0:01:35]} 20. Bh3 {[%clk 0:02:02]}  Qe7 {[%clk 0:01:32]} 21. Rf2 {[%clk 0:01:58]}  Nc7 {[%clk 0:01:29]} 22. Nf4 {[%clk 0:01:55]}  Rxf4 {[%clk 0:00:52]} 23. gxf4 {[%clk 0:01:54]}  Rf8 {[%clk 0:00:53]} 24. Kh2 {[%clk 0:01:14]}  Rxf4 {[%clk 0:00:52]} 25. Rg1 {[%clk 0:01:10]}  Nf8 {[%clk 0:00:41]} 26. Rg3 {[%clk 0:01:02]}  Qf7 {[%clk 0:00:21]} 27. Rfg2 {[%clk 0:00:59]}  Ne8 {[%clk 0:00:21]} 28. Qd1 {[%clk 0:00:56]}  Kh8 {[%clk 0:00:17]} 29. Rf2 {[%clk 0:00:49]}  Rxh4 {[%clk 0:00:15]} 30. Nxh4 {[%clk 0:00:28]}  Qxf2+ {[%clk 0:00:16]} 31. Ng2 {[%clk 0:00:28]}  Be2 {[%clk 0:00:10]} 32. Qd2 {[%clk 0:00:25]}  Qf1 {[%clk 0:00:03]} 33. Nf4 {[%clk 0:00:23]}  Bb5 {[%clk 0:00:03]} 34. Bxf1 {[%clk 0:00:23]}  Bxf1 {[%clk 0:00:04]} 35. Ng6+ {[%clk 0:00:22]}  Nxg6 {[%clk 0:00:04]} 36. Rxg6 {[%clk 0:00:23]}  Kh7 {[%clk 0:00:04]} 37. Rxe6 {[%clk 0:00:23]}  Nc7 {[%clk 0:00:04]} 38. Rxc6 {[%clk 0:00:22]}  Nb5 {[%clk 0:00:04]} 39. e6 {[%clk 0:00:21]}  Nc3 {[%clk 0:00:03]} 40. e7 {[%clk 0:00:19]}  Ne4 {[%clk 0:00:04]} 41. Qf4 {[%clk 0:00:18]}  Bb5 {[%clk 0:00:04]} 42. e8=Q {[%clk 0:00:17]}  Bxc6 {[%clk 0:00:05]} 43. Qf5+ {[%clk 0:00:17]}  g6 {[%clk 0:00:05]} 44. Qfxg6# {[%clk 0:00:18]} 1-0


[Site "https://www.chess.com"]

[Event "Titled Tuesday Blitz July 11 Early 2023"]
[White "Yeritsyan, Hayk"]
[Black "Preotu, Razvan"]
[WhiteFideId "13307320"]
[BlackFideId "2613280"]
[WhiteElo "2529"]
[BlackElo "2750"]
[Result "0-1"]
[Round "2"]
[TimeControl "180+2"]
[Date "2023.07.11"]
[WhiteClock "0:00:00"]
[BlackClock "0:00:18"]
[Board "55"]

1. d4 {[%clk 0:03:00]}  Nf6 {[%clk 0:02:59]} 2. Nf3 {[%clk 0:03:00]}  g6 {[%clk 0:02:59]} 3. Bf4 {[%clk 0:02:59]}  Bg7 {[%clk 0:02:59]} 4. h3 {[%clk 0:03:00]}  O-O {[%clk 0:02:56]} 5. e3 {[%clk 0:03:00]}  d6 {[%clk 0:02:56]} 6. c3 {[%clk 0:03:00]}  c5 {[%clk 0:02:57]} 7. Be2 {[%clk 0:03:01]}  Qb6 {[%clk 0:02:57]} 8. Qb3 {[%clk 0:03:01]}  Be6 {[%clk 0:02:58]} 9. Qxb6 {[%clk 0:03:00]}  axb6 {[%clk 0:02:59]} 10. a3 {[%clk 0:03:01]}  cxd4 {[%clk 0:02:55]} 11. exd4 {[%clk 0:03:01]}  Nd5 {[%clk 0:02:52]} 12. Bh2 {[%clk 0:03:01]}  Bd7 {[%clk 0:02:47]} 13. O-O {[%clk 0:02:58]}  b5 {[%clk 0:02:47]} 14. Nbd2 {[%clk 0:02:57]}  Bc6 {[%clk 0:02:47]} 15. Rfe1 {[%clk 0:02:56]}  Nd7 {[%clk 0:02:47]} 16. Bd3 {[%clk 0:02:55]}  Rfe8 {[%clk 0:02:46]} 17. Re2 {[%clk 0:02:43]}  Bh6 {[%clk 0:02:46]} 18. Rae1 {[%clk 0:02:40]}  Kf8 {[%clk 0:02:46]} 19. Ne4 {[%clk 0:02:31]}  Nf4 {[%clk 0:02:45]} 20. Bxf4 {[%clk 0:02:30]}  Bxf4 {[%clk 0:02:46]} 21. Ned2 {[%clk 0:02:25]}  Bh6 {[%clk 0:02:45]} 22. Ne4 {[%clk 0:02:21]}  Bg7 {[%clk 0:02:45]} 23. Neg5 {[%clk 0:02:14]}  h6 {[%clk 0:02:43]} 24. Ne4 {[%clk 0:02:14]}  f5 {[%clk 0:02:32]} 25. Ned2 {[%clk 0:01:46]}  e5 {[%clk 0:02:31]} 26. dxe5 {[%clk 0:01:44]}  dxe5 {[%clk 0:02:32]} 27. Bc2 {[%clk 0:01:30]}  Bf6 {[%clk 0:02:29]} 28. Nb3 {[%clk 0:01:25]}  b6 {[%clk 0:02:04]} 29. Rd1 {[%clk 0:01:18]}  Rac8 {[%clk 0:01:06]} 30. Red2 {[%clk 0:01:15]}  Rc7 {[%clk 0:01:06]} 31. Rd6 {[%clk 0:01:06]}  Kg7 {[%clk 0:01:03]} 32. Rxc6 {[%clk 0:00:57]}  Rxc6 {[%clk 0:01:04]} 33. Rxd7+ {[%clk 0:00:57]}  Kf8 {[%clk 0:00:56]} 34. Kf1 {[%clk 0:00:45]}  Ree6 {[%clk 0:00:51]} 35. Ke2 {[%clk 0:00:38]}  Red6 {[%clk 0:00:51]} 36. Rxd6 {[%clk 0:00:38]}  Rxd6 {[%clk 0:00:52]} 37. Nfd2 {[%clk 0:00:33]}  e4 {[%clk 0:00:51]} 38. g3 {[%clk 0:00:27]}  Ke7 {[%clk 0:00:47]} 39. h4 {[%clk 0:00:25]}  Ke6 {[%clk 0:00:35]} 40. Nf1 {[%clk 0:00:21]}  Ke5 {[%clk 0:00:31]} 41. Nd4 {[%clk 0:00:20]}  f4 {[%clk 0:00:27]} 42. gxf4+ {[%clk 0:00:14]}  Kxf4 {[%clk 0:00:28]} 43. Nxb5 {[%clk 0:00:13]}  Rd5 {[%clk 0:00:24]} 44. Nd4 {[%clk 0:00:10]}  Bxd4 {[%clk 0:00:24]} 45. cxd4 {[%clk 0:00:10]}  Rxd4 {[%clk 0:00:25]} 46. Ne3 {[%clk 0:00:09]}  g5 {[%clk 0:00:18]} 47. hxg5 {[%clk 0:00:10]}  Kxg5 {[%clk 0:00:19]} 48. b4 {[%clk 0:00:09]}  h5 {[%clk 0:00:18]} 49. Ng2 {[%clk 0:00:08]}  h4 {[%clk 0:00:19]} 50. Ke3 {[%clk 0:00:08]}  h3 {[%clk 0:00:19]} 51. Nf4 {[%clk 0:00:04]}  h2 {[%clk 0:00:19]} 52. Ne6+ {[%clk 0:00:03]}  Kf6 {[%clk 0:00:19]} 53. Nxd4 {[%clk 0:00:03]}  h1=Q {[%clk 0:00:19]} 54. Bxe4 {[%clk 0:00:04]}  Qc1+ {[%clk 0:00:17]} 55. Kf3 {[%clk 0:00:03]}  Qxa3+ {[%clk 0:00:18]} 56. Kf4 {[%clk 0:00:02]}  Qxb4 {[%clk 0:00:19]} 57. Ne2 {[%clk 0:00:03]}  b5 {[%clk 0:00:18]} 58. f3 {[%clk 0:00:03]}  Qd2+ {[%clk 0:00:18]} 59. Kg4 {[%clk 0:00:02]}  b4 {[%clk 0:00:19]} 60. Nf4 {[%clk 0:00:01]}  b3 {[%clk 0:00:18]} 61. Nd5+ {[%clk 0:00:00]}  Ke5 {[%clk 0:00:18]} 0-1


[Site "https://www.chess.com"]

[Event "Titled Tuesday Blitz July 11 Early 2023"]
[White "Turzo, Attila"]
[Black "Concio, Michael Jr."]
[WhiteFideId "704954"]
[BlackFideId "5217873"]
[WhiteElo "2525"]
[BlackElo "2743"]
[Result "0-1"]
[Round "2"]
[TimeControl "180+2"]
[Date "2023.07.11"]
[WhiteClock "0:00:00"]
[BlackClock "0:00:14"]
[Board "58"]

1. d4 {[%clk 0:02:57]}  Nf6 {[%clk 0:03:00]} 2. c4 {[%clk 0:02:56]}  e6 {[%clk 0:03:00]} 3. g3 {[%clk 0:02:56]}  Bb4+ {[%clk 0:03:01]} 4. Nd2 {[%clk 0:02:56]}  d5 {[%clk 0:03:00]} 5. Bg2 {[%clk 0:02:55]}  O-O {[%clk 0:03:00]} 6. Nf3 {[%clk 0:02:55]}  dxc4 {[%clk 0:03:01]} 7. O-O {[%clk 0:02:55]}  c3 {[%clk 0:03:00]} 8. Nc4 {[%clk 0:02:49]}  cxb2 {[%clk 0:02:57]} 9. Bxb2 {[%clk 0:02:49]}  Nbd7 {[%clk 0:02:55]} 10. Qb3 {[%clk 0:02:48]}  Be7 {[%clk 0:02:45]} 11. Rfd1 {[%clk 0:02:44]}  Rb8 {[%clk 0:02:42]} 12. a4 {[%clk 0:02:37]}  a6 {[%clk 0:02:39]} 13. a5 {[%clk 0:02:35]}  Nd5 {[%clk 0:02:11]} 14. e4 {[%clk 0:02:27]}  N5f6 {[%clk 0:02:09]} 15. Nfe5 {[%clk 0:02:18]}  Nxe5 {[%clk 0:02:03]} 16. Nxe5 {[%clk 0:01:49]}  Bd7 {[%clk 0:01:52]} 17. Rac1 {[%clk 0:01:41]}  Bb5 {[%clk 0:01:49]} 18. d5 {[%clk 0:01:36]}  exd5 {[%clk 0:01:47]} 19. exd5 {[%clk 0:01:37]}  Bd6 {[%clk 0:01:47]} 20. Nc4 {[%clk 0:01:22]}  Re8 {[%clk 0:01:46]} 21. Nxd6 {[%clk 0:01:20]}  Qxd6 {[%clk 0:01:36]} 22. Bxf6 {[%clk 0:01:10]}  Qxf6 {[%clk 0:01:35]} 23. Rxc7 {[%clk 0:01:08]}  Qd6 {[%clk 0:01:09]} 24. Rdc1 {[%clk 0:01:00]}  g6 {[%clk 0:01:05]} 25. Qf3 {[%clk 0:00:59]}  Re7 {[%clk 0:00:51]} 26. Rxe7 {[%clk 0:00:54]}  Qxe7 {[%clk 0:00:52]} 27. Qf4 {[%clk 0:00:53]}  Rd8 {[%clk 0:00:49]} 28. Qc7 {[%clk 0:00:50]}  Rd7 {[%clk 0:00:47]} 29. Qc8+ {[%clk 0:00:49]}  Kg7 {[%clk 0:00:47]} 30. h4 {[%clk 0:00:49]}  Qa3 {[%clk 0:00:44]} 31. h5 {[%clk 0:00:43]}  Rd8 {[%clk 0:00:24]} 32. Qc7 {[%clk 0:00:39]}  Rd7 {[%clk 0:00:23]} 33. Qe5+ {[%clk 0:00:39]}  f6 {[%clk 0:00:23]} 34. Qc3 {[%clk 0:00:29]}  Qxc3 {[%clk 0:00:22]} 35. Rxc3 {[%clk 0:00:30]}  Kf7 {[%clk 0:00:22]} 36. hxg6+ {[%clk 0:00:28]}  hxg6 {[%clk 0:00:23]} 37. Bh3 {[%clk 0:00:28]}  f5 {[%clk 0:00:23]} 38. Bg2 {[%clk 0:00:28]}  Ke7 {[%clk 0:00:23]} 39. Rc8 {[%clk 0:00:26]}  Rd8 {[%clk 0:00:17]} 40. Rc7+ {[%clk 0:00:24]}  Rd7 {[%clk 0:00:18]} 41. Rc8 {[%clk 0:00:23]}  Kf6 {[%clk 0:00:17]} 42. f4 {[%clk 0:00:23]}  Bd3 {[%clk 0:00:12]} 43. Kf2 {[%clk 0:00:20]}  Be4 {[%clk 0:00:11]} 44. Bxe4 {[%clk 0:00:20]}  fxe4 {[%clk 0:00:12]} 45. Rc5 {[%clk 0:00:18]}  Ke7 {[%clk 0:00:12]} 46. Ke3 {[%clk 0:00:17]}  Kd6 {[%clk 0:00:13]} 47. Kd4 {[%clk 0:00:18]}  e3 {[%clk 0:00:13]} 48. Rc1 {[%clk 0:00:15]}  e2 {[%clk 0:00:13]} 49. Re1 {[%clk 0:00:14]}  Re7 {[%clk 0:00:13]} 50. g4 {[%clk 0:00:14]}  Re8 {[%clk 0:00:14]} 51. f5 {[%clk 0:00:14]}  gxf5 {[%clk 0:00:15]} 52. gxf5 {[%clk 0:00:14]}  Re5 {[%clk 0:00:16]} 53. Kc4 {[%clk 0:00:11]}  Rxf5 {[%clk 0:00:13]} 54. Rxe2 {[%clk 0:00:11]}  Rxd5 {[%clk 0:00:14]} 55. Kb4 {[%clk 0:00:11]}  Rd4+ {[%clk 0:00:14]} 56. Ka3 {[%clk 0:00:09]}  Kc6 {[%clk 0:00:14]} 57. Rb2 {[%clk 0:00:09]}  Rd5 {[%clk 0:00:14]} 58. Rb6+ {[%clk 0:00:09]}  Kc7 {[%clk 0:00:15]} 59. Kb4 {[%clk 0:00:09]}  Rd6 {[%clk 0:00:13]} 60. Rxd6 {[%clk 0:00:00]}  Kxd6 {[%clk 0:00:14]} 0-1


[Site "https://www.chess.com"]

[Event "Titled Tuesday Blitz July 11 Early 2023"]
[White "Jarovinsky, Alexey"]
[Black "Tokman, Ariel"]
[WhiteFideId "14115131"]
[BlackFideId "117420"]
[WhiteElo "2737"]
[BlackElo "2525"]
[Result "0-1"]
[Round "2"]
[TimeControl "180+2"]
[Date "2023.07.11"]
[WhiteClock "0:00:01"]
[BlackClock "0:00:04"]
[Board "59"]

1. Nc3 {[%clk 0:03:00]}  d5 {[%clk 0:02:59]} 2. e4 {[%clk 0:02:59]}  c6 {[%clk 0:02:55]} 3. Qf3 {[%clk 0:02:58]}  e6 {[%clk 0:02:50]} 4. d4 {[%clk 0:02:57]}  dxe4 {[%clk 0:02:42]} 5. Nxe4 {[%clk 0:02:58]}  Nf6 {[%clk 0:02:31]} 6. c3 {[%clk 0:02:50]}  Nxe4 {[%clk 0:02:28]} 7. Qxe4 {[%clk 0:02:51]}  Nd7 {[%clk 0:02:28]} 8. Nf3 {[%clk 0:02:50]}  Nf6 {[%clk 0:02:29]} 9. Qe2 {[%clk 0:02:50]}  Bd7 {[%clk 0:02:13]} 10. g3 {[%clk 0:02:50]}  c5 {[%clk 0:02:12]} 11. Ne5 {[%clk 0:02:48]}  cxd4 {[%clk 0:02:09]} 12. Bg2 {[%clk 0:02:46]}  Bd6 {[%clk 0:01:44]} 13. O-O {[%clk 0:02:36]}  O-O {[%clk 0:01:41]} 14. cxd4 {[%clk 0:02:29]}  Nd5 {[%clk 0:01:37]} 15. Bd2 {[%clk 0:01:59]}  Bxe5 {[%clk 0:01:35]} 16. dxe5 {[%clk 0:01:54]}  Bc6 {[%clk 0:01:35]} 17. Rfd1 {[%clk 0:01:50]}  Qe7 {[%clk 0:01:31]} 18. Rac1 {[%clk 0:01:43]}  Rfd8 {[%clk 0:01:30]} 19. Be4 {[%clk 0:01:40]}  h6 {[%clk 0:01:05]} 20. Bb1 {[%clk 0:01:36]}  Nb6 {[%clk 0:00:56]} 21. a3 {[%clk 0:01:29]}  Rd5 {[%clk 0:00:37]} 22. Ba2 {[%clk 0:01:22]}  Rd7 {[%clk 0:00:27]} 23. Bb4 {[%clk 0:01:18]}  Qg5 {[%clk 0:00:24]} 24. Bb1 {[%clk 0:01:08]}  Rad8 {[%clk 0:00:22]} 25. Re1 {[%clk 0:01:02]}  h5 {[%clk 0:00:16]} 26. f4 {[%clk 0:00:37]}  Qg4 {[%clk 0:00:16]} 27. Be4 {[%clk 0:00:29]}  Qxe2 {[%clk 0:00:15]} 28. Rxe2 {[%clk 0:00:28]}  Bxe4 {[%clk 0:00:15]} 29. Rxe4 {[%clk 0:00:29]}  Nd5 {[%clk 0:00:14]} 30. Bd6 {[%clk 0:00:26]}  Kh7 {[%clk 0:00:14]} 31. Kf2 {[%clk 0:00:24]}  Kg6 {[%clk 0:00:13]} 32. h3 {[%clk 0:00:23]}  Nf6 {[%clk 0:00:12]} 33. Rec4 {[%clk 0:00:21]}  Nd5 {[%clk 0:00:13]} 34. Kf3 {[%clk 0:00:21]}  Rh8 {[%clk 0:00:13]} 35. b4 {[%clk 0:00:17]}  Rdd8 {[%clk 0:00:13]} 36. R4c2 {[%clk 0:00:15]}  Kf5 {[%clk 0:00:14]} 37. b5 {[%clk 0:00:11]}  g5 {[%clk 0:00:14]} 38. fxg5 {[%clk 0:00:09]}  Kxg5 {[%clk 0:00:14]} 39. Rd2 {[%clk 0:00:07]}  Kf5 {[%clk 0:00:14]} 40. g4+ {[%clk 0:00:03]}  hxg4+ {[%clk 0:00:14]} 41. hxg4+ {[%clk 0:00:04]}  Kg6 {[%clk 0:00:15]} 42. Kg3 {[%clk 0:00:04]}  Rh7 {[%clk 0:00:14]} 43. Rf1 {[%clk 0:00:02]}  Rdh8 {[%clk 0:00:13]} 44. Kf3 {[%clk 0:00:01]}  Rh3+ {[%clk 0:00:13]} 45. Ke4 {[%clk 0:00:02]}  Re3+ {[%clk 0:00:13]} 46. Kd4 {[%clk 0:00:02]}  Rxa3 {[%clk 0:00:12]} 47. Rdf2 {[%clk 0:00:02]}  Ra4+ {[%clk 0:00:12]} 48. Kc5 {[%clk 0:00:02]}  Rh7 {[%clk 0:00:11]} 49. Bc7 {[%clk 0:00:02]}  Ra2 {[%clk 0:00:11]} 50. Kd6 {[%clk 0:00:03]}  Rxf2 {[%clk 0:00:10]} 51. Rxf2 {[%clk 0:00:03]}  Nc3 {[%clk 0:00:09]} 52. Rf3 {[%clk 0:00:03]}  Nxb5+ {[%clk 0:00:09]} 53. Kd7 {[%clk 0:00:03]}  f5+ {[%clk 0:00:08]} 54. Kxe6 {[%clk 0:00:03]}  Nxc7+ {[%clk 0:00:08]} 55. Kd6 {[%clk 0:00:03]}  fxg4 {[%clk 0:00:09]} 56. Rf6+ {[%clk 0:00:03]}  Kg5 {[%clk 0:00:09]} 57. Rf8 {[%clk 0:00:03]}  Nb5+ {[%clk 0:00:08]} 58. Kc5 {[%clk 0:00:03]}  a6 {[%clk 0:00:08]} 59. e6 {[%clk 0:00:03]}  Re7 {[%clk 0:00:06]} 60. Kd5 {[%clk 0:00:03]}  g3 {[%clk 0:00:05]} 61. Ke5 {[%clk 0:00:03]}  Kg4 {[%clk 0:00:04]} 62. Rg8+ {[%clk 0:00:03]}  Kf3 {[%clk 0:00:04]} 63. Kf6 {[%clk 0:00:04]}  Rc7 {[%clk 0:00:05]} 64. Rg7 {[%clk 0:00:02]}  Rxg7 {[%clk 0:00:04]} 65. Kxg7 {[%clk 0:00:01]}  g2 {[%clk 0:00:04]} 0-1


[Site "https://www.chess.com"]